bitfinex-derivatives/quotes_ETHF0:USTF0_20241024
["timestamp","ask_amount","ask_price","bid_price","bid_amount"]
[1729781572398,0.39626,2525.2,2525.1,0.755]
[1729781572896,0.39629,2525.0,2524.9,0.7272]
[1729781573202,0.39629,2525.0,2524.9,1.12351]
[1729781573702,0.39629,2525.1,2525.0,0.39629]
[1729781573901,0.39624,2525.4,2525.3,0.39624]
[1729781574103,0.39622,2525.5,2525.4,0.39622]
[1729781574496,9.14786315,2526.0,2525.6,0.39619]
[1729781574497,0.39619,2525.7,2525.6,0.39619]
[1729781574701,0.3962,2525.6,2525.5,0.3962]
[1729781574896,0.39618,2525.8,2525.7,0.39618]
[1729781575102,0.39617,2525.8,2525.7,0.39618]
[1729781575301,0.39617,2525.9,2525.7,0.39617]
[1729781575498,3.9663,2526.0,2525.4,0.7259]
[1729781575896,0.39618,2525.8,2525.6,0.39619]
[1729781576308,0.39618,2525.8,2525.4,0.7259]
[1729781576603,0.39619,2525.7,2525.4,0.7259]
[1729781576808,0.39619,2525.7,2525.6,0.3962]
[1729781577202,0.39617,2525.8,2525.7,0.39618]
[1729781577414,0.39617,2525.8,2525.4,0.7259]
[1729781577415,0.39619,2525.7,2525.5,0.3962]
[1729781577904,1.74885,2526.0,2525.5,0.3962]
[1729781577905,0.3962,2525.6,2525.5,0.3962]
[1729781578299,0.3962,2525.7,2525.4,0.7259]
[1729781578500,0.3962,2525.6,2525.5,0.39621]
[1729781578701,0.7585,2526.0,2525.4,0.7259]
[1729781579007,0.39615,2525.9,2525.6,0.3962]
[1729781579215,0.3962,2525.7,2525.5,0.3962]
[1729781579511,0.3962,2525.6,2525.5,0.3962]
[1729781579903,1.74886,2526.0,2525.4,0.7259]
[1729781580100,0.39619,2525.7,2525.6,0.3962]
[1729781580502,0.3962,2525.6,2525.5,0.39621]
[1729781581104,0.7585,2526.0,2525.5,3.9592]
[1729781581303,3.2078,2526.3,2525.6,0.39619]
[1729781581304,0.39618,2525.7,2525.6,0.39619]
[1729781581611,0.39618,2525.8,2525.7,0.39618]
[1729781581803,0.39616,2525.9,2525.8,0.39616]
[1729781582206,4.19805,2526.3,2525.6,3.2078]
[1729781582207,0.99027,2526.2,2525.6,3.2078]
[1729781582404,0.99027,2526.2,2525.6,0.39619]
[1729781582405,0.39619,2525.7,2525.6,0.39619]
[1729781582610,0.39616,2525.9,2525.7,0.39617]
[1729781582807,0.39616,2525.9,2525.8,0.39617]
[1729781583018,3.2078,2526.3,2525.6,3.2078]
[1729781583510,2.44622,2526.4,2525.6,3.2078]
[1729781583511,0.39613,2526.1,2526.0,0.39613]
[1729781583715,0.39614,2526.0,2525.9,0.39614]
[1729781583911,0.39613,2526.1,2525.7,0.39618]
[1729781584115,2.44622,2526.4,2525.6,4.19829]
[1729781584314,0.99023,2526.3,2525.6,4.19829]
[1729781584516,0.99029,2526.2,2525.8,0.39616]
[1729781584711,0.39616,2525.9,2525.8,0.39616]
[1729781585710,0.39618,2525.8,2525.7,0.39617]
[1729781586013,0.99032,2526.1,2525.6,3.2078]
[1729781586208,0.39617,2525.9,2525.8,0.39615]
[1729781586409,0.39618,2525.8,2525.7,0.39617]
[1729781587118,0.39616,2525.9,2525.8,0.39615]
[1729781587419,0.99026,2526.3,2526.0,0.39612]
[1729781587420,0.39613,2526.1,2526.0,0.39612]
[1729781587816,0.39616,2525.9,2525.8,0.39615]
[1729781588306,0.39618,2525.7,2525.6,3.2078]
[1729781588507,1.98062,2526.1,2525.5,0.7307]
[1729781588508,0.3962,2525.6,2525.5,0.7307]
[1729781588713,0.39621,2525.5,2525.4,0.7259]
[1729781589010,0.99043,2525.8,2525.5,0.39619]
[1729781589011,0.39621,2525.6,2525.5,0.39619]
[1729781589214,0.39618,2525.8,2525.7,0.39617]
[1729781589417,3.2078,2525.9,2525.5,1.1323]
[1729781589418,0.3962,2525.6,2525.5,1.1323]
[1729781589619,4.39221657,2526.2,2525.5,0.7361]
[1729781589815,3.2078,2526.3,2525.6,0.9905]
[1729781590121,0.39613,2526.1,2526.0,0.39613]
[1729781590315,3.2078,2526.3,2525.8,5.17656916]
[1729781590511,0.39612,2526.2,2526.1,0.39611]
[1729781590912,5.3721,2526.8,2526.1,3.9584]
[1729781591221,5.3721,2526.8,2526.6,0.39603]
[1729781591222,0.39603,2526.7,2526.6,0.39603]
[1729781591413,0.39602,2526.8,2526.7,0.39602]
[1729781591606,0.98994,2527.1,2526.6,3.2078]
[1729781591607,1.4908,2527.1,2526.6,3.2078]
[1729781591807,0.39598,2527.0,2526.9,0.39599]
[1729781592010,0.98981,2527.4,2526.5,5.17629916]
[1729781592011,0.39603,2526.7,2526.6,3.2078]
[1729781592523,0.39603,2526.7,2526.6,7.56144]
[1729781592910,0.7343,2527.2,2526.6,7.1654]
[1729781593214,0.7422,2527.3,2526.7,1.11390455]
[1729781593515,3.2078,2527.5,2527.0,3.2078]
[1729781593820,0.7343,2527.6,2527.2,0.39594]
[1729781593821,0.39594,2527.3,2527.2,0.39594]
[1729781594214,0.7422,2527.7,2527.2,3.9568]
[1729781594415,0.7422,2527.7,2527.1,0.7194]
[1729781594816,0.39589,2527.6,2527.4,0.39591]
[1729781595222,0.7422,2527.7,2527.1,0.7194]
[1729781595522,0.39593,2527.4,2527.2,0.51975555]
[1729781595720,0.39592,2527.4,2527.2,0.39594]
[1729781595920,0.39592,2527.4,2526.6,3.60383]
[1729781595921,0.39602,2526.8,2526.6,3.60383]
[1729781596117,0.39602,2526.8,2526.7,0.12383372]
[1729781596826,0.39607,2526.4,2526.3,0.759]
[1729781597011,0.99003,2526.8,2526.3,2.09636388]
[1729781597217,0.39607,2526.4,2526.3,0.759]
[1729781597523,0.39607,2526.4,2526.3,1.8982605]
[1729781597821,0.39607,2526.5,2526.4,0.39607]
[1729781598022,4.19779,2527.0,2526.5,0.39605]
[1729781598322,4.19779,2527.0,2526.4,0.39606]
[1729781598323,0.39605,2526.6,2526.4,0.39606]
[1729781598520,4.19779,2527.0,2526.3,0.759]
[1729781598720,0.39606,2526.5,2526.4,0.12385721]
[1729781599118,0.39606,2526.5,2526.4,0.74315412]
[1729781599421,0.39605,2526.6,2526.4,0.51992721]
[1729781599721,0.39605,2526.6,2526.5,0.39605]
[1729781600025,0.39607,2526.4,2526.3,1.15508]
[1729781600224,0.98999,2526.9,2526.3,4.70997308]
[1729781600427,0.98999,2526.9,2526.4,0.51993218]
[1729781600727,3.2078,2527.0,2526.3,0.759]
[1729781600936,0.39606,2526.5,2526.4,0.51991796]
[1729781601240,0.39606,2526.5,2526.4,0.74313054]
[1729781601535,0.39604,2526.7,2526.6,0.39604]
[1729781601731,3.2078,2527.0,2526.3,0.759]
[1729781601937,3.2078,2527.0,2526.5,3.2078]
[1729781602243,0.39602,2526.8,2526.6,0.39603]
[1729781602537,0.39604,2526.6,2526.4,0.39606]
[1729781602737,0.39604,2526.6,2526.5,0.12385476]
[1729781602937,3.2078,2527.0,2526.5,0.12385476]
[1729781603141,0.39603,2526.7,2526.6,0.39603]
[1729781603334,0.39603,2526.7,2526.6,0.51988155]
[1729781603634,0.39603,2526.7,2526.3,4.94515916]
[1729781603635,0.39603,2526.7,2526.5,0.39604]
[1729781603834,0.39605,2526.6,2526.4,0.39606]
[1729781604030,0.39604,2526.6,2526.5,0.12385536]
[1729781604235,0.39604,2526.6,2526.5,0.39606]
[1729781604435,0.39604,2526.6,2526.5,0.51991381]
[1729781604736,0.39604,2526.6,2526.5,0.12385381]
[1729781605146,0.39604,2526.6,2526.5,0.51991866]
[1729781605330,0.39603,2526.7,2526.5,0.12385866]
[1729781605536,0.39603,2526.7,2526.6,0.12385268]
[1729781606034,3.2078,2527.0,2526.5,0.39606]
[1729781606035,0.39605,2526.6,2526.5,0.39606]
[1729781606229,0.39605,2526.6,2526.5,0.12385456]
[1729781607342,0.39605,2526.6,2526.5,0.74315076]
[1729781607938,0.39605,2526.6,2526.5,0.94131253]
[1729781608331,0.39605,2526.6,2526.5,0.74313913]
[1729781608533,0.39605,2526.6,2526.5,0.94131525]
[1729781608940,0.39605,2526.6,2526.5,0.94131063]
[1729781609434,0.39605,2526.6,2526.5,0.32202606]
[1729781609639,0.39605,2526.6,2526.5,0.9413253]
[1729781611438,0.99,2526.9,2526.3,1.15508]
[1729781611640,0.39604,2526.6,2526.5,0.19817455]
[1729781611831,0.99006,2526.8,2526.5,0.94132913]
[1729781612037,0.39603,2526.7,2526.6,0.12385989]
[1729781612241,1.11843,2526.7,2526.6,0.12385989]
[1729781612440,5.07603,2526.7,2526.6,0.12385989]
[1729781612637,5.07603,2526.7,2526.1,0.74948966]
[1729781612638,0.3961,2526.2,2526.1,1.09792]
[1729781612841,0.3961,2526.2,2526.1,3.27800867]
[1729781613136,0.39609,2526.4,2526.2,0.39609]
[1729781613335,0.39609,2526.4,2526.3,0.94140192]
[1729781615041,0.39607,2526.5,2526.3,1.9323302]
[1729781615240,3.9302,2526.7,2526.4,0.9413938]
[1729781615241,0.39605,2526.6,2526.4,0.9413938]
[1729781615539,0.39605,2526.6,2526.5,2.57591499]
[1729781615540,0.39604,2526.6,2526.5,2.57591499]
[1729781615941,0.39604,2526.6,2526.5,6.53351499]
[1729781616143,0.39604,2526.6,2526.5,2.17985139]
[1729781616644,0.39604,2526.6,2526.5,0.94129898]
[1729781617251,0.39604,2526.6,2526.5,0.12385461]
[1729781617444,0.3961,2526.2,2526.1,0.7018]
[1729781617644,0.3961,2526.2,2526.1,1.64326917]
[1729781617848,0.3961,2526.2,2526.1,0.94146917]
[1729781618243,0.3961,2526.2,2526.1,0.12387752]
[1729781618747,0.3961,2526.2,2526.1,0.12388575]
[1729781619951,4.3545,2526.2,2526.1,0.12388575]
[1729781620343,3.9584,2526.2,2525.9,3.2078]
[1729781620650,0.39614,2526.0,2525.9,3.2078]
[1729781620846,0.39614,2526.0,2525.9,3.33168943]
[1729781621749,0.39614,2526.0,2525.9,3.2078]
[1729781621939,0.39614,2526.0,2525.9,3.33168806]
[1729781622144,0.39614,2526.0,2525.9,3.2078]
[1729781622448,0.39617,2525.8,2525.7,1.15168]
[1729781622648,0.39617,2525.8,2525.7,1.27557055]
[1729781622843,0.39617,2525.8,2525.7,1.47379552]
[1729781623039,0.39617,2525.8,2525.7,1.07761552]
[1729781623245,3.2078,2525.9,2525.3,0.7494]
[1729781623447,3.2078,2525.9,2525.4,0.12390235]
[1729781623448,0.39622,2525.5,2525.4,0.12390235]
[1729781623849,0.39621,2525.6,2525.4,0.12390235]
[1729781624043,4.6444,2525.9,2525.3,4.15098092]
[1729781624044,3.2078,2525.9,2525.5,0.12390235]
[1729781624244,0.99038,2526.0,2525.5,6.60938092]
[1729781624448,0.39618,2525.7,2525.6,0.89569839]
[1729781624646,0.99038,2526.0,2525.6,0.89569839]
[1729781624848,0.39615,2525.9,2525.8,0.39615]
[1729781625054,0.7276,2526.2,2525.7,4.10128092]
[1729781625055,1.71787,2526.2,2525.7,4.10128092]
[1729781625245,0.99032,2526.1,2525.7,0.6997]
[1729781625449,1.71787,2526.2,2525.7,0.6997]
[1729781625653,0.7276,2526.2,2525.7,0.6997]
[1729781625857,0.7276,2526.2,2525.8,0.12388994]
[1729781626050,0.39614,2526.0,2525.9,0.39614]
[1729781626657,0.39613,2526.1,2526.0,0.39613]
[1729781626857,3.2078,2526.3,2525.7,5.09173092]
[1729781627059,0.39613,2526.1,2526.0,0.39613]
[1729781627754,3.2078,2526.3,2526.0,0.39613]
[1729781627958,3.2078,2526.3,2525.8,3.2078]
[1729781628156,3.2078,2526.3,2525.9,3.52546423]
[1729781628355,3.2078,2526.3,2526.0,0.12388331]
[1729781628551,0.39612,2526.1,2526.0,0.39613]
[1729781628751,0.39612,2526.1,2526.0,0.12387703]
[1729781629454,0.39611,2526.2,2526.1,0.39611]
[1729781629661,0.39611,2526.2,2526.1,0.51999001]
[1729781629957,0.3961,2526.3,2526.2,0.3961]
[1729781630158,3.2078,2526.4,2526.0,0.7469]
[1729781630350,0.39612,2526.1,2526.0,1.14303]
[1729781630550,0.39611,2526.2,2526.1,0.39611]
[1729781630846,0.39611,2526.2,2526.1,0.12387658]
[1729781631454,0.39611,2526.2,2526.1,0.51999658]
[1729781631656,0.39611,2526.2,2526.1,0.12387658]
[1729781631959,0.39615,2525.9,2525.8,3.60396]
[1729781632159,0.39615,2525.9,2525.8,3.72784539]
[1729781632457,0.39615,2526.0,2525.9,0.39615]
[1729781632652,0.99029,2526.2,2525.9,0.12388539]
[1729781632853,0.99029,2526.2,2525.8,3.2078]
[1729781633056,0.99029,2526.2,2525.8,3.60396]
[1729781633057,0.39615,2525.9,2525.8,3.60396]
[1729781633251,0.39615,2525.9,2525.8,3.72784501]
[1729781633451,0.39615,2525.9,2525.8,7.68704501]
[1729781634050,0.39615,2525.9,2525.8,7.29088501]
[1729781634256,0.39615,2525.9,2525.8,7.68705501]
[1729781635058,0.39615,2525.9,2525.8,7.29088501]
[1729781635357,0.39615,2525.9,2525.8,7.68705501]
[1729781635558,0.39615,2525.9,2525.8,3.33168501]
[1729781636559,0.39615,2525.9,2525.8,3.2078]
[1729781636761,0.39615,2525.9,2525.8,0.12389029]
[1729781636951,1.69941,2526.1,2525.7,0.6997]
[1729781637155,0.39617,2525.8,2525.7,0.6997]
[1729781637360,0.39617,2525.8,2525.7,0.82359762]
[1729781638064,0.39617,2525.8,2525.7,0.12389762]
[1729781638268,0.39623,2525.4,2525.3,3.9651]
[1729781638454,0.39623,2525.4,2525.3,0.1239149]
[1729781638659,0.39623,2525.4,2524.9,0.7037]
[1729781638660,4.95059,2525.4,2524.9,1.3087]
[1729781638966,4.95059,2525.4,2525.0,0.52021419]
[1729781638967,0.39629,2525.1,2525.0,0.52021419]
[1729781639469,0.39629,2525.1,2525.0,0.71849648]
[1729781639668,0.39629,2525.1,2525.0,0.12392419]
[1729781640163,0.39629,2525.1,2524.9,1.3087]
[1729781640164,0.39629,2525.0,2524.9,0.605]
[1729781640565,0.39629,2525.0,2524.9,0.72893256]
[1729781643366,3.2078,2525.0,2524.4,3.40158092]
[1729781643563,0.39635,2524.6,2524.5,0.12394763]
[1729781643764,4.59638092,2524.9,2524.3,0.5783]
[1729781643969,0.99094,2524.5,2524.1,0.39642]
[1729781644158,0.99097,2524.4,2524.2,0.12396881]
[1729781644359,0.39643,2524.1,2524.0,3.60424]
[1729781644667,0.39643,2524.1,2524.0,0.52042231]
[1729781644854,0.39643,2524.1,2524.0,7.56585]
[1729781645662,0.99089,2524.6,2524.2,0.39641]
[1729781645663,0.39642,2524.3,2524.2,0.39641]
[1729781645857,0.39643,2524.1,2524.0,3.2078]
[1729781647066,3.7975,2524.4,2524.0,3.2078]
[1729781647457,0.39641,2524.3,2524.2,0.39641]
[1729781648069,3.2078,2524.4,2524.0,3.2078]
[1729781648264,0.39643,2524.2,2524.0,3.60424]
[1729781648573,0.39643,2524.1,2524.0,3.60424]
[1729781649074,3.2078,2524.4,2524.0,3.60424]
[1729781649368,0.39643,2524.2,2524.1,0.39643]
[1729781649764,3.2078,2524.4,2524.0,3.2078]
[1729781649968,0.39642,2524.3,2524.1,0.39642]
[1729781650167,0.39642,2524.3,2524.0,3.2078]
[1729781650365,3.2078,2524.4,2524.0,3.2078]
[1729781650567,3.60419,2524.4,2524.0,3.2078]
[1729781650761,3.2078,2524.4,2524.0,3.2078]
[1729781650962,3.60419,2524.4,2524.3,0.3964]
[1729781651163,3.2078,2524.7,2524.1,3.40158092]
[1729781651363,0.39643,2524.1,2524.0,3.60424]
[1729781651568,0.99093,2524.5,2524.0,3.60424]
[1729781651569,0.39643,2524.2,2524.0,3.60424]
[1729781651976,0.39643,2524.1,2524.0,3.2078]
[1729781652670,0.39642,2524.2,2524.1,0.39642]
[1729781652862,4.19873,2524.5,2524.0,3.2078]
[1729781653066,0.39643,2524.1,2524.0,3.60424]
[1729781653263,0.39643,2524.1,2524.0,3.2078]
[1729781653665,0.39643,2524.1,2524.0,3.60425]
[1729781653866,0.39643,2524.1,2524.0,3.2078]
[1729781654066,0.39643,2524.1,2524.0,3.60425]
[1729781654267,0.39643,2524.1,2524.0,3.2078]
[1729781654467,0.39643,2524.1,2524.0,3.60425]
[1729781655874,0.39643,2524.1,2524.0,3.2078]
[1729781656181,3.79801092,2524.1,2524.0,3.2078]
[1729781657682,7.75961092,2524.1,2524.0,3.2078]
[1729781659571,0.39648,2523.8,2523.7,0.3965]
[1729781661778,0.39648,2523.8,2523.5,3.8226]
[1729781661779,3.2078,2524.2,2523.5,3.8226]
[1729781661983,0.39648,2523.9,2523.8,0.39647]
[1729781662485,0.39649,2523.8,2523.7,0.39648]
[1729781662780,0.39648,2523.9,2523.8,0.39647]
[1729781662980,0.39646,2524.0,2523.9,0.39645]
[1729781663177,3.40158092,2524.1,2523.5,4.81392]
[1729781663674,0.39646,2524.0,2523.9,0.39646]
[1729781664380,3.40158092,2524.1,2523.5,4.81392]
[1729781664583,3.40158092,2524.1,2523.9,0.39645]
[1729781664584,0.39646,2524.0,2523.9,0.39645]
[1729781664975,3.79803092,2524.1,2524.0,0.39645]
[1729781665179,0.39645,2524.1,2524.0,0.39645]
[1729781665878,0.39643,2524.1,2524.0,0.39645]
[1729781666079,0.39646,2523.9,2523.8,0.5654]
[1729781666474,3.40158092,2524.1,2523.5,0.6148]
[1729781666780,0.39651,2523.7,2523.5,1.1802]
[1729781666980,0.39651,2523.7,2523.6,0.3965]
[1729781667177,0.39651,2523.6,2523.5,1.57672]
[1729781669289,7.60056092,2523.9,2523.5,1.1802]
[1729781669486,3.2078,2523.9,2523.5,2.17152]
[1729781669785,3.2078,2523.9,2523.8,0.39648]
[1729781671279,0.39649,2523.8,2523.7,0.39648]
[1729781671486,3.2078,2523.9,2523.5,1.1802]
[1729781671686,0.39648,2523.9,2523.8,0.39648]
[1729781671888,4.39263092,2524.2,2523.6,0.99129]
[1729781672091,0.39646,2524.0,2523.9,0.39645]
[1729781672280,0.39645,2524.1,2524.0,1.01674]
[1729781673085,6.60938092,2524.4,2524.0,0.6203]
[1729781673286,3.2078,2524.4,2524.2,0.3964]
[1729781673490,0.39642,2524.2,2524.1,0.93702]
[1729781673791,0.39642,2524.2,2524.1,0.5406]
[1729781673976,0.39642,2524.2,2524.1,0.93703]
[1729781674182,3.40158092,2524.2,2523.7,3.2078]
[1729781674387,0.39648,2523.8,2523.7,3.2078]
[1729781674584,3.79806092,2523.8,2523.7,3.2078]
[1729781675784,0.39648,2523.8,2523.7,3.6043]
[1729781676197,1.50689,2524.1,2523.8,0.39647]
[1729781676198,0.39648,2523.9,2523.8,0.39647]
[1729781676693,0.39648,2523.9,2523.7,3.2078]
[1729781676694,1.5069,2524.1,2523.7,3.2078]
[1729781676886,0.39648,2523.8,2523.7,3.60428]
[1729781677192,0.39648,2523.8,2523.7,0.39648]
[1729781677989,3.40158092,2523.9,2523.6,1.0525]
[1729781678192,0.3965,2523.7,2523.6,1.0525]
[1729781678688,0.3965,2523.7,2523.6,1.44901]
[1729781678891,0.3965,2523.7,2523.6,1.0525]
[1729781679194,0.3965,2523.7,2523.6,1.17650011]
[1729781679390,0.3965,2523.7,2523.6,1.0525]
[1729781679596,0.3965,2523.7,2523.6,1.57301016]
[1729781679789,0.39649,2523.8,2523.7,0.39648]
[1729781680304,0.39649,2523.8,2523.7,0.52047611]
[1729781680487,0.39649,2523.8,2523.7,0.12399611]
[1729781680788,0.39649,2523.8,2523.7,0.52049611]
[1729781680999,0.39648,2523.9,2523.8,0.39647]
[1729781681194,0.39648,2523.9,2523.8,0.52046611]
[1729781681490,0.39646,2524.0,2523.9,0.39645]
[1729781681692,0.39646,2524.0,2523.9,0.52044611]
[1729781681895,5.81425,2524.5,2523.9,4.08639611]
[1729781682083,0.39643,2524.1,2524.0,0.1239891]
[1729781682496,0.39648,2523.9,2523.7,0.39649]
[1729781682690,0.39648,2523.9,2523.8,0.94236424]
[1729781682990,7.56668,2523.9,2523.8,0.94236424]
[1729781683203,7.56668,2523.9,2523.4,0.5829]
[1729781683204,0.39653,2523.5,2523.4,0.5829]
[1729781683381,0.39653,2523.5,2523.4,2.39347107]
[1729781683584,0.39653,2523.5,2523.4,2.64153633]
[1729781683788,0.39653,2523.5,2523.4,2.05863633]
[1729781683996,7.00591092,2523.5,2523.4,1.81059682]
[1729781684181,7.00591092,2523.5,2523.4,2.05863699]
[1729781684585,7.00591092,2523.5,2523.4,0.81847733]
[1729781685293,3.60433,2523.5,2523.4,2.05868395]
[1729781685993,3.60433,2523.5,2523.4,1.0665727]
[1729781686195,3.60433,2523.5,2523.4,2.05873336]
[1729781687291,3.60433,2523.5,2523.4,0.81853254]
[1729781687493,3.2078,2523.5,2523.4,2.05873438]
[1729781687697,3.60433,2523.5,2523.4,2.05873438]
[1729781687894,3.2078,2523.5,2523.4,2.45527438]
[1729781688398,0.39653,2523.6,2523.5,0.39653]
[1729781688592,3.2078,2523.8,2523.5,2.45525438]
[1729781688789,3.2078,2523.8,2523.6,2.05873438]
[1729781689103,3.60429,2523.8,2523.7,2.05856841]
[1729781689309,3.60429,2523.8,2523.7,1.06654529]
[1729781689597,3.60429,2523.8,2523.7,2.05859444]
[1729781689901,3.60429,2523.8,2523.7,2.45509444]
[1729781690201,3.60429,2523.8,2523.7,0.81853254]
[1729781690492,3.60429,2523.8,2523.7,2.45508643]
[1729781690693,0.39646,2524.0,2523.9,0.39646]
[1729781690997,0.39646,2524.0,2523.9,0.81853254]
[1729781690998,0.39645,2524.0,2523.9,0.81853254]
[1729781692497,0.39648,2523.8,2523.7,0.39649]
[1729781692694,3.94398092,2524.1,2523.7,0.39649]
[1729781692695,0.39647,2523.9,2523.8,0.39648]
[1729781692892,3.94398092,2524.1,2523.8,1.06639248]
[1729781692893,3.40158092,2524.1,2523.8,1.06639248]
[1729781693094,3.40158092,2524.1,2523.5,0.60271028]
[1729781693095,3.40158092,2524.1,2523.5,1.54601]
[1729781693294,0.39646,2524.0,2523.9,0.81836951]
[1729781693495,3.40158092,2524.1,2523.9,1.21482951]
[1729781693706,0.39645,2524.0,2523.9,0.39646]
[1729781694000,0.39644,2524.1,2524.0,0.39645]
[1729781694201,0.39644,2524.1,2524.0,1.73850633]
[1729781694504,0.39644,2524.1,2524.0,1.34205633]
[1729781695204,3.60423,2524.2,2524.1,0.39643]
[1729781695396,3.60423,2524.2,2524.1,0.32237551]
[1729781695592,3.60423,2524.2,2524.1,0.1239861]
[1729781695903,3.2078,2524.2,2524.1,1.33871513]
[1729781696497,3.2078,2524.2,2524.1,1.85231513]
[1729781696695,3.2078,2524.2,2524.1,4.87163]
[1729781696900,3.2078,2524.6,2524.1,6.6572269]
[1729781697104,3.2078,2524.6,2524.5,0.39636]
[1729781697105,0.39636,2524.6,2524.5,0.39636]
[1729781697302,3.40158092,2524.7,2524.5,0.32231748]
[1729781697504,0.39641,2524.3,2524.2,0.39641]
[1729781697705,0.39641,2524.3,2524.2,2.57829146]
[1729781697905,0.39641,2524.3,2524.2,1.19011715]
[1729781698109,0.39641,2524.3,2524.2,1.58654971]
[1729781698302,0.39641,2524.3,2524.2,1.33859608]
[1729781698610,3.40158092,2524.5,2524.2,0.94217608]
[1729781698808,3.2078,2524.6,2524.3,0.94217608]
[1729781699005,3.2078,2524.6,2524.4,0.71870064]
[1729781699006,0.39637,2524.5,2524.4,0.71870064]
[1729781699204,0.39637,2524.5,2524.4,1.33854151]
[1729781699407,0.39637,2524.5,2524.4,1.33853694]
[1729781700010,3.2078,2524.6,2524.4,0.94215694]
[1729781700207,3.60416,2524.6,2524.5,0.71869064]
[1729781700407,3.60416,2524.6,2524.5,0.39637]
[1729781700714,3.60416,2524.6,2524.5,0.71867988]
[1729781700912,3.60416,2524.6,2524.5,0.71867712]
[1729781701411,3.2078,2524.6,2524.5,1.33851069]
[1729781701801,3.2078,2524.6,2524.5,0.12396242]
[1729781701802,3.60415,2524.6,2524.5,0.12396242]
[1729781702001,3.60415,2524.6,2524.5,0.32231042]
[1729781702209,3.60415,2524.6,2524.5,0.12396242]
[1729781702511,3.2078,2524.6,2524.5,0.39637]
[1729781702809,3.2078,2524.6,2524.5,0.52033737]
[1729781703014,0.39633,2524.8,2524.7,0.39633]
[1729781703207,6.60938092,2525.1,2524.7,0.12396002]
[1729781703407,0.3963,2525.0,2524.9,0.3963]
[1729781703612,3.2078,2525.1,2524.9,0.12396002]
[1729781703809,3.2078,2525.1,2524.7,0.99084]
[1729781704009,3.60408,2525.1,2525.0,0.39629]
[1729781704203,3.2078,2525.1,2525.0,0.52023468]
[1729781704801,3.60408,2525.1,2525.0,0.12394468]
[1729781705401,10.96566092,2525.1,2525.0,0.12394468]
[1729781705618,0.99079,2524.9,2524.1,0.99108]
[1729781705808,3.40158092,2524.7,2524.2,6.30066689]
[1729781706013,3.7365,2524.8,2523.9,2.02291642]
[1729781706014,0.3964,2524.4,2524.3,0.8181479]
[1729781706209,4.39252092,2524.5,2524.1,0.39643]
[1729781706408,4.92132092,2524.5,2523.9,3.2078]
[1729781706614,4.92132092,2524.5,2524.0,0.59482026]
[1729781706615,0.39645,2524.1,2524.0,0.59482026]
[1729781706815,0.39645,2524.1,2524.0,1.21472732]
[1729781707108,3.40158092,2524.3,2523.8,1.5532]
[1729781707109,3.40158092,2524.3,2523.8,1.94967]
[1729781707310,0.39646,2523.9,2523.8,1.94967]
[1729781707514,0.39646,2523.9,2523.8,2.76799383]
[1729781707709,0.39646,2524.0,2523.9,0.39646]
[1729781707905,0.39646,2524.0,2523.9,1.21478383]
[1729781708105,0.39646,2524.0,2523.9,0.81832383]
[1729781708615,0.39646,2524.0,2523.9,1.21478383]
[1729781709013,3.79804092,2524.0,2523.9,0.81832383]
[1729781709215,0.3965,2523.7,2523.6,0.39651]
[1729781709512,3.2078,2523.8,2523.4,0.39653]
[1729781709810,0.39653,2523.5,2523.4,0.39653]
[1729781710011,4.19901,2523.8,2523.4,0.83827853]
[1729781710215,0.39652,2523.6,2523.5,0.59493792]
[1729781710411,0.39651,2523.7,2523.6,0.3965]
[1729781710615,0.39651,2523.7,2523.6,1.21497392]
[1729781710917,0.39649,2523.8,2523.7,0.39649]
[1729781711212,0.39648,2523.9,2523.8,0.39648]
[1729781711411,0.39648,2523.9,2523.7,0.01980461]
[1729781711412,3.2078,2524.1,2523.7,0.01980461]
[1729781711618,0.39646,2524.0,2523.9,0.39646]
[1729781712009,3.2078,2524.1,2523.9,0.01980461]
[1729781712213,0.39645,2524.0,2523.9,0.01980461]
[1729781714813,7.76043092,2524.0,2523.9,0.01980461]
[1729781715013,0.99118,2523.9,2523.3,0.5372]
[1729781715220,0.39653,2523.5,2523.4,1.41341479]
[1729781715811,0.39653,2523.5,2523.4,1.01687479]
[1729781716221,0.39652,2523.6,2523.4,1.41340479]
[1729781716416,0.39653,2523.5,2523.4,0.19841381]
[1729781716624,0.39653,2523.5,2523.4,1.41343348]
[1729781717019,0.39653,2523.5,2523.4,1.01689348]
[1729781717235,0.39657,2523.2,2522.9,0.39662]
[1729781717430,0.39657,2523.2,2522.7,1.44654]
[1729781717431,0.39664,2522.8,2522.7,1.44654]
[1729781717738,0.39664,2522.8,2522.7,6.15475377]
[1729781718129,0.39664,2522.8,2522.7,5.75811377]
[1729781718335,0.39664,2522.8,2522.7,6.15476377]
[1729781718540,0.39664,2522.8,2522.7,1.57058768]
[1729781719438,0.39664,2522.8,2522.7,1.17393768]
[1729781719743,0.39664,2522.8,2522.7,1.57058768]
[1729781720137,0.39664,2522.8,2522.7,1.57057768]
[1729781720336,4.19927,2523.2,2522.7,1.17393768]
[1729781720537,0.39662,2523.0,2522.9,0.39661]
[1729781720736,0.39661,2523.0,2522.9,0.39661]
[1729781721143,0.39662,2523.0,2522.9,0.39662]
[1729781721343,0.3966,2523.1,2523.0,0.3966]
[1729781721532,0.3966,2523.1,2522.7,1.0499]
[1729781721533,3.60439,2523.2,2523.1,0.39659]
[1729781721734,0.39657,2523.3,2523.2,0.39657]
[1729781722044,0.39652,2523.6,2523.5,0.39652]
[1729781722631,3.7502,2523.7,2523.5,0.39652]
[1729781722845,3.2078,2523.7,2523.3,1.587]
[1729781723043,3.2078,2523.7,2523.6,0.39651]
[1729781723842,0.5424,2524.0,2523.4,4.19916]
[1729781723843,0.39647,2523.9,2523.4,4.19916]
[1729781724141,0.39647,2523.9,2523.8,0.39648]